Cogmind - Beta 16 @@@ ROGUE MODE // 2025.11.25 @ 20:07:17 Player: SilverswordXV Result: Destroyed by WG-CBT(R) with Subdweller Beam Cannon Performance ------------- Evolutions (0) 0 Regions Visited (2) 400 Robots Destroyed (8) 40 Value Destroyed (259) 259 Prototype IDs (0) 0 Alien Tech Used (0) 0 Bonus (0) 0 TOTAL SCORE: 699 Bonus ------- None Cogmind --------- Core Integrity 0/250 Matter 222/300 Energy 100/100 System Corruption 0% Temperature Cool (9) Movement Rolling (100) Location -10/Subcaves Parts ------- > --- POWER (1) -------- (None) > --- PROPULSION (2) --- Compact Wheel > --- UTILITY (2) ------ Small Storage Unit Visual Processing Unit > --- WEAPON (2) ------- Shotgun Shotgun > --- INVENTORY (8) ---- Light Treads Compact Wheel Hover Unit ECM Suite Core Shielding EM Pulse Gun Light Assault Rifle Peak State ------------ > --- POWER ------------ Improved Ion Engine > --- PROPULSION ------- Compact Wheel Compact Wheel > --- UTILITY ---------- Small Storage Unit Visual Processing Unit > --- WEAPON ----------- Shotgun Shotgun > --- INVENTORY -------- Ion Engine Light Treads Hover Unit ECM Suite Core Shielding EM Pulse Gun Assault Rifle Light Assault Rifle [Rating: 11] Favorites ----------- Power Ion Engine Engine Ion Engine Propulsion Compact Wheel Wheel Compact Wheel Utility Small Storage Unit Device ECM Suite Storage Small Storage Unit Processor Visual Processing Unit Weapon Shotgun Ballistic Gun Shotgun Build | -11 -10 -10 ------- Run | Yrd Mat Sub Slots Evolved . | . . . Power . | . . . Propulsion . | . . . Utility . | . . . Weapon . | . . . Parts Attached 13 | 6 4 3 Power 3 | 1 . 2 Engine 3 | 1 . 2 Core . | . . . Reactor . | . . . Propulsion 3 | 2 . 1 Treads . | . . . Leg . | . . . Wheel 3 | 2 . 1 Hover . | . . . Flight . | . . . Utility 3 | 1 2 . Device 1 | . 1 . Storage 1 | 1 . . Processor 1 | . 1 . Hackware . | . . . Protection . | . . . Artifact . | . . . Weapon 4 | 2 2 . Energy Gun . | . . . Energy Cannon . | . . . Ballistic Gun 4 | 2 2 . Ballistic Cannon . | . . . Launcher . | . . . Special Weapon . | . . . Impact Weapon . | . . . Slashing Weapon . | . . . Piercing Weapon . | . . . Special Melee Weapon . | . . . Unidentified Prototypes . | . . . Parts Lost 4 | . . 4 Power 2 | . . 2 Propulsion 1 | . . 1 Utility . | . . . Weapon 1 | . . 1 Highest Loss Streak 2 | . . 2 To Critical Strikes . | . . . Average Backups 6 | 1 4 7 Power . | . 1 . Propulsion 1 | . 1 2 Utility 1 | . . 2 Weapon 2 | . 1 2 Tool/Special . | . . . Unused Backups 4 | . . 4 Power . | . . . Propulsion 2 | . . 2 Utility 1 | . . 1 Weapon 1 | . . 1 Tool/Special . | . . . Average Slot Usage (%) 95 | . 92 96 Engine 12 | . 14 11 Wheel 27 | . 28 27 Device 1 | . 4 . Storage 14 | . 14 14 Processor 10 | . 2 14 Ballistic Gun 27 | . 28 27 Peak Build Rating 11 | 6 10 11 Average Rating 8 | 4 7 9 On Entrance 5 | . 6 10 Avg Prop Armor Cover (%) . | . . . Naked Turns . | . . . Heaviest Build 18 | 13 18 18 Greatest Support 32 | 32 32 32 Greatest Overweight (x) . | . . . Average Overweight (x) . | . . . Largest Inventory Capacity 8 | 8 8 8 Average Capacity 7 | 6 8 8 Most Carried 8 | 3 8 8 Average Carried 6 | 2 4 7 Final Capacity 8 | 8 8 8 Final Carried 8 | 3 8 7 Class Distribution -------------------- 100% | Mutant Dominant Class ---------------- Mutant | -10/Materials Mutant | -10/Subcaves Resources | -11 -10 -10 ----------- Run | Yrd Mat Sub Matter Collected 465 | 189 94 182 Remotely . | . . . Salvage Created 276 | . 94 182 Parts 18 | . 7 11 Haulers Intercepted . | . . . Recyclers Shooed . | . . . Parts Field Recycled . | . . . Retrieved Matter . | . . . Parts Self-Destructed 5 | . . 5 Prevented . | . . . Parts Restored . | . . . Kills | -11 -10 -10 ------- Run | Yrd Mat Sub Combat Hostiles Destroyed 7 | . 2 5 Guns 7 | . 2 5 Classes Destroyed 5 | . 2 3 Watcher 1 | . 1 . Swarmer 1 | . . 1 Grunt 2 | . 2 . Sentry 1 | . . 1 Subdweller 3 | . . 3 Best Kill Streak 2 | . 1 2 Combat Bots Only 2 | . 1 2 Max Kills in Single Turn 1 | . 1 1 Gunslinging . | . . . Exploded . | . . . Melee . | . . . Uniques/NPCs Destroyed . | . . . Combat | -11 -10 -10 -------- Run | Yrd Mat Sub Hostile Shots Fired 59 | . 17 42 Missed 11 | . 2 9 Hits 48 | . 15 33 Projectile 48 | . 15 33 AOE 2 | . . 2 Damage Taken 834 | . 165 669 Core 262 | . 33 229 Absorbed by Shields . | . . . Core Remaining (%) 100 | 100 . . Volleys Fired 41 | . 17 24 Largest 2 | . 2 2 Hottest 46 | . 46 46 Shots Fired 77 | . 34 43 Gun 77 | . 34 43 Cannon . | . . . Launcher . | . . . Special . | . . . Kinetic 77 | . 34 43 Thermal . | . . . Explosive . | . . . Electromagnetic . | . . . Robot Hit Streak 25 | . 13 25 Robot Miss Streak 9 | . 9 5 Penetration Max . | . . . Secondary Targets 1 | . . 1 Max Gunslinging Chain 1 | . . 1 Shots Hit Robots 53 | . 21 32 Core Hits 15 | . 4 11 Critical Kills 1 | . . 1 Critical Parts Destroyed . | . . . Critical Strikes 1 | . . 1 Destroy 1 | . . 1 Melee Attacks . | . . . Impact . | . . . Slashing . | . . . Piercing . | . . . Sneak Attacks . | . . . Combat Hostiles . | . . . Follow-up Attacks . | . . . Damage Inflicted 649 | . 220 429 Guns 649 | . 220 429 Cannons . | . . . Explosions . | . . . Melee . | . . . Ramming . | . . . Kinetic 649 | . 220 429 Thermal . | . . . Explosive . | . . . Electromagnetic . | . . . Impact . | . . . Slashing . | . . . Piercing . | . . . Highest Corruption . | . . . Average Corruption . | . . . Corruption Purged . | . . . Corruption Blocked . | . . . Overload Shots . | . . . Overflow Damage . | . . . Projectiles . | . . . Explosions . | . . . Melee . | . . . Knockbacks . | . . . Impact . | . . . Kinetic . | . . . Secondary . | . . . Self-Inflicted Damage . | . . . Shots . | . . . Rammed . | . . . Targets Rammed . | . . . Kicked . | . . . Crushed . | . . . Highest Temperature 12 | . 12 . Average Temperature 6 | . 6 . Received Heat Transfer 246 | . 90 156 Siege Activations . | . . . Martial Activations . | . . . Shielding Activations . | . . . Robots Disrupted . | . . . Combat Hostiles . | . . . Robots Corrupted . | . . . Combat Hostiles . | . . . Parts Fried . | . . . Impact Corruptions . | . . . Robots Melted . | . . . Combat Hostiles . | . . . Parts Melted . | . . . Heat Transferred . | . . . Parts Sabotaged . | . . . Parts Stolen . | . . . Parts Stripped . | . . . Power Chain Reactions . | . . . Alert | -11 -10 -10 ------- Run | Yrd Mat Sub Maximum Alert Level . | . . . Low Security (%) 100 | 100 100 . Level 1 . | . . . Level 2 . | . . . Level 3 . | . . . Level 4 . | . . . Level 5 . | . . . High Security . | . . . Max Security . | . . . Peak Influence 20 | . 20 . Initial . | . . . Average 2 | . 4 . Influence Increases 94 | . 54 40 Destroy 0b10 Robot/C 80 | . 40 40 Destroy 0b10 Robot/NC 5 | . 5 . Destroy Leader 2 | . 2 . Successful Hack 7 | . 7 . Influence Decreases 94 | . 54 40 Time Decay 84 | . 54 30 Lost Part 10 | . . 10 Squads Dispatched . | . . . Investigation . | . . . Extermination . | . . . Reinforcement . | . . . Assault . | . . . Garrison . | . . . Intercept . | . . . Searches Triggered . | . . . Construction Impeded . | . . . Haulers Reinforced . | . . . Active Scanning Responses . | . . . Cargo Convoy Interrupts . | . . . Stealth | -11 -10 -10 --------- Run | Yrd Mat Sub Distress Signals 1 | . 1 . Communications Jammed . | . . . Distress Signals . | . . . Times Spotted 11 | . 5 6 Peak Tracking Total 3 | . 3 3 Tactical Retreats . | . . . Traps | -11 -10 -10 ------- Run | Yrd Mat Sub Traps Triggered . | . . . Indirectly . | . . . Trap Hack Attempts . | . . . Triggered . | . . . Disarmed . | . . . Reprogrammed . | . . . Reused . | . . . Traps Extracted . | . . . Installed . | . . . Triggered . | . . . Machines | -11 -10 -10 ---------- Run | Yrd Mat Sub Machines Disabled . | . . . Max in Single Turn . | . . . Machines Repaired . | . . . Machines Dismantled . | . . . Machines Sabotaged . | . . . Overloaded Fab Kills . | . . . Hacking | -11 -10 -10 --------- Run | Yrd Mat Sub Machines Accessed 1 | . 1 . Terminals 1 | . 1 . Fabricators . | . . . Repair Stations . | . . . Recycling Units . | . . . Scanalyzers . | . . . Garrison Access . | . . . Total Hacks 2 | . 2 . Successful 1 | . 1 . Failed 1 | . 1 . Catastrophic . | . . . Database Lockouts . | . . . Manual 2 | . 2 . Terminals 2 | . 2 . Fabricators . | . . . Repair Stations . | . . . Recycling Units . | . . . Scanalyzers . | . . . Garrison Access . | . . . Terminal Hacks 1 | . 1 . Part Schematic 1 | . 1 . Fabricator Hacks . | . . . Repair Station Hacks . | . . . Recycling Unit Hacks . | . . . Scanalyzer . | . . . Garrison Access Hacks . | . . . Unauthorized Hacks . | . . . Terminals . | . . . Fabricators . | . . . Repair Stations . | . . . Recycling Units . | . . . Scanalyzers . | . . . Garrison Access . | . . . Data Cores Recovered . | . . . Used . | . . . Hacking Detections 1 | . 1 . Full Trace Events . | . . . Feedback Events . | . . . Feedback Blocked . | . . . Robot Schematics Acquired . | . . . Robots Built . | . . . Authchips . | . . . Time . | . . . Total Robot Build Rating . | . . . Part Schematics Acquired 1 | . 1 . Parts Built . | . . . Authchips . | . . . Time . | . . . Total Part Build Rating . | . . . Part Studies Acquired . | . . . Parts Repaired . | . . . Time . | . . . Parts Recycled . | . . . Recycled Matter . | . . . Retrieved Matter . | . . . Retrieved Components . | . . . Parts Scanalyzed . | . . . Part Schematics Acquired . | . . . Parts Damaged . | . . . Bothacking | -11 -10 -10 ------------ Run | Yrd Mat Sub Used RIF Installer . | . . . Robots Hacked . | . . . Non-combat . | . . . Combat . | . . . Robot Hacks Applied . | . . . Relay Couplers Released . | . . . Fabnet Peak Effective % . | . . . Robots Rewired . | . . . Allies Hacked . | . . . Hacks Repelled . | . . . Allies | -11 -10 -10 -------- Run | Yrd Mat Sub Total Allies . | . . . Largest Group . | . . . Highest-Rated Group . | . . . Highest-Rated Ally . | . . . Total Orders . | . . . Ally Attacks . | . . . Total Damage . | . . . Kills . | . . . Allies Corrupted . | . . . Allies Melted . | . . . Intel | -11 -10 -10 ------- Run | Yrd Mat Sub Active Infowar (turns) 477 | . 91 386 Optics 417 | . 31 386 ECM 60 | . 60 . Robot Analysis Total . | . . . Derelict Logs Recovered . | . . . Drone Launches . | . . . Drone Recoveries . | . . . Exploration | -11 -10 -10 ------------- Run | Yrd Mat Sub Turns Passed 621 | 60 175 386 Spaces Moved 431 | 45 101 285 Core 1 | 1 . . Treads . | . . . Legs . | . . . Wheels 430 | 44 101 285 Hover . | . . . Flight . | . . . Fastest Speed 50 | 50 100 90 Average Speed 99 | 98 100 99 Slowest Speed 100 | 100 100 100 Overloaded Moves . | . . . Propulsion Burnouts . | . . . Robots Hopped . | . . . Potential Cave-ins . | . . . Cave-ins Triggered . | . . . Exploration Rate (%) 16 | 4 21 23 Regions Visited 2 Branch Regions 1 Pre-discovered Areas . | . . . Known Exits Taken . | . . . Unknown Exits Taken 2 | 1 1 . Scrap Searched . | . . . Spaces Dug . | . . . Terrain Destroyed . | . . . Melee . | . . . Projectile . | . . . AOE . | . . . Terrain Rammed . | . . . Walls Destroyed . | . . . Machines Disabled . | . . . Actions | -11 -10 -10 --------- Run | Yrd Mat Sub Total 548 | 57 142 349 Wait 51 | 4 18 29 Move 429 | 44 100 285 Hop . | . . . Pick Up 5 | 3 2 . Fast Attach 9 | 6 2 1 Attach 4 | . . 4 Detach 3 | . 1 2 Swap 4 | . 2 2 Drop 2 | . . 2 Fire 41 | . 17 24 Melee . | . . . Ram . | . . . Kick . | . . . Crush . | . . . Escape Stasis . | . . . Rewire . | . . . Trap . | . . . Miscellaneous . | . . . Route ------- -11/Scrapyard -10/Materials -10/Subcaves History --------- Turn | Location | Event 31 | -11/Scrapyard | Discovered new exit (range 16) 61 | -11/Scrapyard | Entered Materials 231 | -10/Materials | Discovered new exit (range 6) 236 | -10/Materials | Entered Subcaves 302 | -10/Subcaves | Build established: Mutant 584 | -10/Subcaves | Ambushed by Subdwellers from Twisted Machinery 586 | -10/Subcaves | Core integrity fell below 50% 617 | -10/Subcaves | Core integrity fell below 20% 622 | -10/Subcaves | Destroyed by WG-CBT(R) with Subdweller Beam Cannon Last Messages --------------- 00504_ Assault Rifle destroyed. 00511_ Imp. Ion Engine destroyed. 00512_ 1H-07F(R) destroyed. 00518_ Acquired Shotgun. 00526_ Subatomizers dissect the Ion Engine. 00536_ Acquired 41 matter. 00540_ Subatomizers dissect the Sub. Optics. 00584_ BH-AWV(R) emerges from the Twisted Machinery. 00585_ U8-J2X(u) cries out in pain. 00585_ U8-J2X(u) destroyed. 00604_ BH-AWV(R) suffers critical hit (Destroy). 00604_ BH-AWV(R) destroyed. 00612_ Ion Engine destroyed. 00613_ N9-A2H(R) destroyed. 00613_ Switching to secondary target: WG-CBT(R). 00616_ Wheel destroyed. 00619_ Acquired 77 matter. 00619_ WG-CBT(R) affixes Scrap Shield Fragment to Scrap Shield. Map ----- +----------------------------------------------------+ | ?????????# " " #??????????????? | | ?????????## " & #?????????????? | | ??????????## ####"# #?????????????? | | ???????????# ## ###?? #?????????????? | | ???????????#?## ## #?????????????? | | ????????????## #?????????????? | | ???????????## #??????????????? | | ???????????# #########??????????????? | | ?????#####?# #??????????????????????? | | ?????# ## ##???#??????????????????? | | ?????# #####?? #??????????????????? | | ?????# ## ## ##?????????????????? | | ?????# ##????????????????? | | ?????# #????????????????? | | ?????# ## "#### #????????????????? | | ?????## #?#####; " ##????????????????????? | | ??????# ????### ""#####????????????????? | | ??????##?????# "# #????????????????? | | ?????????????# "# #????????????????? | | ?????????????# ""## ##???????????????? | | ?????????????# #?# #???????????????? | | ?????????????# ### #????????????????? | | ?????????????#; ## #????????????????? | | ?????????????#" #????????????????? | | ?????????????# |% !! ##????????????????? | | ????????????# " ##R@=###???????????????? | | ????????????### #####! #???????????????? | | ??????????????## #???# #???????????????? | | ???????????????### ???# #???????????????? | | ?????????????????## #??# #???????????????? | | ?????????????????? #??## #???????????????? | | ??????????????????# #???####???????????????? | | ??????????????????" ##??????????????????????? | | ??????????????????#" ???????????????????????? | | ??????????????????#"" ???????????????????????? | | ??????????????????## ??????????????????????? | | ???????????????????? ??????????????????????? | | ???????????????????? ??????????????????????? | | ???????????????????? ?????????????????????? | | ???????????????????? ??????????????????????? | | ????????????????????? ??????????????????????? | | ????????????????????? ???????????????????????? | | ?????????????????????????????????????????????? | | ?????????????????????????????????????????????? | | ?????????????????????????????????????????????? | | ?????????????????????????????????????????????? | | ?????????????????????????????????????????????? | | ?????????????????????????????????????????????? | | ?????????????????????????????????????????????? | | ?????????????????????????????????????????????? | +----------------------------------------------------+ Best States ------------- Heat Dissipation 25 Energy Generation 12 Energy Capacity 265 Matter Stores 257 Matter Capacity 300 Sight Range 18 Terrain Scan Density 10 ECM Strength 1 Evasion (%) 42 Item Schematics ----------------- Med. Storage Unit | -10/Materials | Hacked Robot Schematics ------------------ None Fabricated ------------ Nothing Repaired ---------- Nothing Studied --------- None Alien Tech Used ----------------- None Achievements -------------- None Challenges ------------ None Game ------ Seed LatentVoltaicDesublimator Manual? 0 Play Time 00:08:57 Cumulative 30.9 hours Start 2025.11.25 @ 18:46:21 End 2025.11.25 @ 20:07:17 Sessions 1 Manual Loads 0 Difficulty Rogue Special Mode None Game No. 31 Rogue 31 Adventurer 0 Explorer 0 Win Type - Total 0 Types 0/0/0/0/0/0/0/0/0/0 Lore% 15 Gallery% 23 Achievement% 20 Wizard Run 0 Options --------- Layout 1 ASCII 0 Keyboard 1 Movement Numpad Keybinds 0 Fullscreen 1 Font 24/Smallcaps Map View 50x35 Zoom Use 0% Tactical HUD 1 Map Filters NONE Filters NONE Steam 1 RUN: ad5c1e80-4b39-4f3f-ad24-6d0bb5951ef4